bitfinex/quotes_SOLUSD_20240813
["timestamp","ask_amount","ask_price","bid_price","bid_amount"]
[1723552757302,20.0,146.79,146.72,17.0382]
[1723552757504,20.0,146.79,146.75,17.0357]
[1723552757729,20.0,146.79,146.72,17.0386]
[1723552757932,20.0,146.82,146.72,17.0386]
[1723552758324,6.8125,146.79,146.74,6.8147]
[1723552758936,20.0,146.82,146.72,34.0784]
[1723552759152,20.0,146.83,146.74,0.12549]
[1723552759439,6.8126,146.79,146.75,6.8142]
[1723552759613,37.0265,146.83,146.74,0.12549]
[1723552760024,20.0,146.83,146.76,0.12549]
[1723552760247,20.0,146.83,146.77,17.0324]
[1723552760457,6.8114,146.82,146.78,0.25098]
[1723552760620,6.8115,146.81,146.78,0.25098]
[1723552760926,22.1957,146.84,146.77,0.12549]
[1723552761246,22.1957,146.84,146.8,6.8116]
[1723552761449,46.79,146.89,146.82,0.12549]
[1723552761746,6.8083,146.88,146.84,6.81]
[1723552761934,6.8092,146.86,146.82,17.15269]
[1723552762137,6.8092,146.86,146.82,6.93649]
[1723552763457,6.8088,146.87,146.82,6.93649]
[1723552763677,6.8092,146.86,146.82,6.93649]
[1723552763861,1.7026585,146.88,146.78,17.0316]
[1723552764145,68.8946,146.89,146.81,6.8111]
[1723552764454,6.8088,146.87,146.82,17.0272]
[1723552764751,6.8088,146.87,146.83,6.8105]
[1723552764919,22.1046,146.89,146.79,20.0]
[1723552764920,22.1046,146.89,146.84,17.0249]
[1723552765119,28.9127,146.89,146.84,17.0249]
[1723552765320,6.8088,146.87,146.83,6.8104]
[1723552765624,6.8092,146.86,146.82,0.25098]
[1723552765945,22.1046,146.89,146.78,23.8442]
[1723552765946,46.79,146.88,146.78,23.8442]
[1723552766155,6.8106,146.83,146.78,17.0314]
[1723552766448,6.811,146.82,146.78,23.8441]
[1723552766664,46.79,146.88,146.82,6.8107]
[1723552766665,6.8093,146.86,146.82,6.8107]
[1723552766949,6.8093,146.86,146.82,6.8109]
[1723552767151,6.8097,146.85,146.81,6.8113]
[1723552767576,22.1046,146.89,146.82,17.0271]
[1723552768071,6.8098,146.85,146.81,7.06218]
[1723552768245,6.8098,146.85,146.81,6.93669]
[1723552768654,22.1046,146.89,146.82,0.12549]
[1723552768859,6.8093,146.86,146.81,0.37647]
[1723552769256,22.1046,146.89,146.83,0.12549]
[1723552769568,6.8085,146.88,146.84,6.8099]
[1723552769764,6.8092,146.86,146.82,17.0267]
[1723552769970,78.1444,146.89,146.82,17.0267]
[1723552770267,78.1444,146.89,146.79,23.843]
[1723552770268,6.8105,146.84,146.79,23.843]
[1723552770566,20.0,146.88,146.81,17.0279]
[1723552770758,22.1046,146.89,146.82,45.12549]
[1723552770948,0.8187459,146.92,146.81,45.0]
[1723552771138,0.8187459,146.92,146.88,6.8081]
[1723552771340,0.8187459,146.92,146.89,17.0192]
[1723552771540,0.8187459,146.92,146.89,23.8268]
[1723552771769,7.6252459,146.92,146.88,6.8081]
[1723552771975,6.8071,146.91,146.87,6.93419]
[1723552772141,7.6252459,146.92,146.88,6.8082]
[1723552772480,0.8187459,146.92,146.88,17.0204]
[1723552773080,7.6252459,146.92,146.88,23.8285]
[1723552773370,6.807,146.91,146.86,6.93459]
[1723552773543,6.807,146.91,146.87,0.12549]
[1723552773743,6.807,146.91,146.87,6.93399]
[1723552773947,7.6251459,146.92,146.88,6.8082]
[1723552774164,0.8187459,146.92,146.89,6.8077]
[1723552774874,0.8187459,146.92,146.9,6.8071]
[1723552775085,0.8187459,146.92,146.91,6.8068]
[1723552775587,0.8187459,146.92,146.9,0.12549]
[1723552775890,0.8187459,146.92,146.9,7.05798]
[1723552776252,0.8187459,146.92,146.91,7.05778]
[1723552776659,0.8187459,146.92,146.91,7.30876]
[1723552776897,0.8187459,146.92,146.91,52.30876]
[1723552778257,0.8187459,146.92,146.91,72.30876]
[1723552779093,0.8187459,146.92,146.91,6.8068]
[1723552779263,0.8187459,146.92,146.9,6.807]
[1723552779665,0.8187459,146.92,146.91,6.8068]
[1723552780254,0.8187459,146.92,146.9,6.8072]
[1723552780459,0.8187459,146.92,146.91,6.8068]
[1723552781063,0.8187459,146.92,146.89,23.8269]
[1723552781465,0.8187459,146.92,146.89,23.8268]
[1723552781673,6.8077,146.9,146.86,17.0225]
[1723552782358,7.6252459,146.92,146.86,17.0225]
[1723552782862,0.8187459,146.92,146.86,17.0225]
[1723552783280,7.6251459,146.92,146.88,23.8285]
[1723552783584,7.6251459,146.92,146.83,6.8104]
[1723552783585,39.02,146.91,146.83,6.8104]
[1723552783787,1.70247269,146.9,146.83,6.8104]
[1723552783992,6.8084,146.88,146.83,6.8104]
[1723552784202,6.8084,146.88,146.76,73.0884]
[1723552784203,39.02,146.89,146.8,6.8119]
[1723552784486,39.02,146.89,146.81,17.0284]
[1723552784699,6.8099,146.85,146.81,23.8399]
[1723552784861,39.02,146.89,146.81,23.8399]
[1723552785068,6.8106,146.83,146.78,17.0315]
[1723552785273,39.02,146.87,146.78,17.0315]
[1723552785598,6.8102,146.84,146.79,6.8123]
[1723552785769,6.8106,146.83,146.78,17.0315]
[1723552786096,6.8102,146.84,146.78,17.0315]
[1723552786574,6.8107,146.83,146.78,17.0315]
[1723552786779,6.81,146.85,146.8,6.8116]
[1723552786992,6.8098,146.85,146.8,6.8116]
[1723552787288,39.02,146.87,146.8,6.8119]
[1723552787496,6.8097,146.85,146.81,6.8113]
[1723552787875,6.8097,146.85,146.81,0.12549]
[1723552788076,6.8092,146.86,146.81,0.25098]
[1723552788271,39.02,146.89,146.8,17.0294]
[1723552788594,39.02,146.89,146.74,39.02]
[1723552788595,6.8106,146.83,146.79,7.06328]
[1723552788798,6.8115,146.81,146.75,17.0351]
[1723552788970,6.812,146.8,146.76,6.8137]
[1723552789365,1.70335101,146.79,146.72,17.0384]
[1723552789593,6.8139,146.76,146.72,23.854]
[1723552789784,6.8134,146.77,146.72,23.854]
[1723552790301,39.02,146.79,146.72,23.854]
[1723552790466,6.8135,146.77,146.72,23.854]
[1723552790665,39.02,146.79,146.65,49.02422657]
[1723552790666,17.0325,146.78,146.69,17.0418]
[1723552791207,65.8337,146.77,146.72,6.8153]
[1723552791493,45.6137,146.82,146.67,73.1084]
[1723552791693,6.8136,146.77,146.72,6.8153]
[1723552791994,6.8136,146.77,146.72,23.854]
[1723552792298,6.8136,146.77,146.73,6.8151]
[1723552792497,6.813,146.78,146.72,17.0387]
[1723552792796,6.8126,146.79,146.75,6.8142]
[1723552793098,6.8129,146.78,146.74,17.0364]
[1723552793300,6.814,146.76,146.72,6.8156]
[1723552793673,6.8134,146.77,146.73,6.815]
[1723552793874,6.8125,146.79,146.74,6.8146]
[1723552794079,6.8125,146.79,146.75,6.8142]
[1723552794806,6.5937,146.82,146.81,6.8115]
[1723552794973,6.5937,146.82,146.8,23.8413]
[1723552795313,6.5937,146.82,146.8,17.0295]
[1723552795673,6.8097,146.85,146.81,6.8115]
[1723552795979,22.7846,146.83,146.79,0.12549]
[1723552796175,22.7846,146.83,146.77,17.0326]
[1723552796176,22.7846,146.83,146.78,0.50196]
[1723552796396,6.6274,146.87,146.82,0.12549]
[1723552796578,6.6274,146.87,146.84,6.81]
[1723552797081,6.6274,146.87,146.83,17.27658]
[1723552797082,6.6274,146.87,146.83,0.12549]
[1723552797288,6.6274,146.87,146.81,0.25098]
[1723552797488,6.6274,146.87,146.81,0.12549]
[1723552797489,6.8099,146.85,146.81,0.12549]
[1723552797806,6.8099,146.85,146.81,7.18787]
[1723552797978,6.8103,146.84,146.8,17.0294]
[1723552798175,39.02,146.85,146.77,23.8465]
[1723552798382,6.8105,146.84,146.79,6.8122]
[1723552798590,6.8107,146.83,146.79,6.8122]
[1723552798795,6.811,146.82,146.78,6.8127]
[1723552799194,39.02,146.83,146.7,49.01792065]
[1723552799394,39.02,146.83,146.74,17.0362]
[1723552799594,39.02,146.81,146.71,17.0402]
[1723552799793,39.02,146.81,146.75,6.8139]
[1723552800013,39.02,146.81,146.73,23.8525]
[1723552800218,6.8139,146.76,146.72,6.8156]
[1723552800506,6.8143,146.75,146.7,23.8572]
[1723552800675,6.814,146.76,146.71,6.8161]
[1723552800879,6.3668,146.77,146.74,6.8144]
[1723552801508,6.3668,146.77,146.67,73.1079]
[1723552801509,16.0536,146.78,146.69,39.02]
[1723552801675,6.2098,146.83,146.73,0.12549]
[1723552801880,6.2098,146.83,146.73,65.50196]
[1723552802108,6.2098,146.83,146.79,0.12549]
[1723552802290,6.2098,146.83,146.81,6.8111]
[1723552802611,15.5004,146.85,146.83,23.8365]
[1723552802993,15.5004,146.85,146.82,0.12549]
[1723552803184,15.5004,146.85,146.81,7.31316]
[1723552803383,15.5004,146.85,146.82,6.8109]
[1723552803580,15.5004,146.85,146.83,6.8104]
[1723552803801,15.5004,146.85,146.81,0.50196]
[1723552803802,22.3103,146.85,146.81,0.50196]
[1723552804177,2.52137578,146.92,146.85,17.0231]
[1723552804384,2.52137578,146.92,146.81,93.57866]
[1723552804385,6.807,146.91,146.88,0.12549]
[1723552805087,7.6252459,146.92,146.88,0.37647]
[1723552805501,7.6252459,146.92,146.88,7.18467]
[1723552805699,0.8187459,146.92,146.9,0.12549]
[1723552806026,0.8187459,146.92,146.91,6.93229]
[1723552806493,0.8187459,146.92,146.89,17.14439]
[1723552806691,0.8187459,146.92,146.89,23.8264]
[1723552806893,0.8187459,146.92,146.88,0.37647]
[1723552807095,0.8187459,146.92,146.81,20.0]
[1723552807096,6.8089,146.87,146.81,20.0]
[1723552807309,6.8089,146.87,146.83,17.0258]
[1723552807598,39.8387459,146.92,146.83,17.0258]
[1723552807599,6.8083,146.88,146.83,17.0258]
[1723552807820,6.8083,146.88,146.83,23.836]
[1723552808025,39.02,146.88,146.8,17.0293]
[1723552808182,22.2237,146.85,146.77,17.0328]
[1723552808384,22.2237,146.85,146.75,34.0714]
[1723552808603,22.2237,146.85,146.81,6.8114]
[1723552808798,22.2237,146.85,146.82,6.8109]
[1723552808999,22.2237,146.85,146.81,17.0281]
[1723552809317,6.8101,146.84,146.79,6.8121]
[1723552809501,6.8101,146.84,146.8,45.0]
[1723552809698,22.2237,146.85,146.82,6.8106]
[1723552809890,22.2237,146.85,146.83,6.8104]
[1723552810411,22.2237,146.85,146.82,17.0266]
[1723552810714,22.2237,146.85,146.83,0.25098]
[1723552810915,6.8081,146.89,146.84,6.93549]
[1723552811085,69.0008,146.9,146.85,17.40057]
[1723552811284,22.1808,146.9,146.88,6.8081]
[1723552811490,22.1808,146.9,146.87,17.14669]
[1723552811703,0.8187459,146.92,146.9,0.12549]
[1723552811913,0.8187459,146.92,146.9,0.37647]
[1723552812117,0.8187459,146.92,146.88,0.37647]
[1723552812506,0.8187459,146.92,146.88,0.12549]
[1723552812710,0.8187459,146.92,146.85,0.12549]
[1723552812711,6.8083,146.88,146.85,0.12549]
[1723552812908,6.8083,146.88,146.85,0.50196]
[1723552813303,46.82,146.9,146.83,45.0]
[1723552813518,6.8104,146.84,146.8,17.0292]
[1723552813720,6.8097,146.85,146.8,17.0292]
[1723552814026,6.8093,146.86,146.8,17.0292]
[1723552814412,6.8093,146.86,146.82,6.8109]
[1723552814610,17.02,146.89,146.82,6.8109]
[1723552814804,20.0,146.88,146.8,17.0292]
[1723552815007,6.3727,146.85,146.78,6.93819]
[1723552815329,6.3727,146.85,146.8,17.0297]
[1723552815536,6.3727,146.85,146.79,34.0611]
[1723552815720,59.6742,146.9,146.85,6.8093]
[1723552815903,12.8542,146.9,146.86,6.809]
[1723552816105,6.0468,146.9,146.86,6.809]
[1723552816306,6.0468,146.9,146.79,34.0611]
[1723552816508,6.0468,146.9,146.8,6.93709]
[1723552816509,6.8099,146.85,146.8,6.93709]
[1723552816805,63.8417,146.88,146.8,0.12549]
[1723552817131,6.8098,146.85,146.8,6.8116]
[1723552817430,6.8101,146.84,146.79,6.8123]
[1723552817733,6.8096,146.86,146.81,6.8112]
[1723552818234,6.8103,146.84,146.81,0.12549]
[1723552818740,17.0234,146.86,146.8,0.12549]
[1723552818929,17.0258,146.84,146.74,17.0362]
[1723552819131,46.82,146.82,146.76,17.034]
[1723552819321,6.8119,146.81,146.76,23.8475]
[1723552819523,6.812,146.8,146.76,17.034]
[1723552819830,6.812,146.8,146.7,9.99503888]
[1723552819831,46.82,146.8,146.7,6.8164]
[1723552820129,6.8139,146.76,146.72,6.8156]
[1723552820430,37.0315,146.79,146.69,6.817]
[1723552820431,46.82,146.77,146.69,6.817]
[1723552820733,6.8148,146.74,146.7,6.8162]
[1723552821206,6.8134,146.77,146.72,6.8152]
[1723552821406,6.8139,146.76,146.72,6.8152]
[1723552821714,18.73963345,146.75,146.64,10.01092455]
[1723552821934,6.5173,146.73,146.63,266.51092455]
[1723552822230,6.5173,146.73,146.72,6.8157]
[1723552822530,6.5173,146.73,146.65,34.0946]
[1723552822531,6.5173,146.73,146.71,23.8557]
[1723552822912,6.5173,146.73,146.68,17.0433]
[1723552823113,6.5173,146.73,146.71,6.816]
[1723552823330,6.5173,146.73,146.68,17.0433]
[1723552823635,15.2398,146.76,146.72,6.8157]
[1723552823934,22.054,146.76,146.71,6.816]
[1723552824132,16.94382701,146.76,146.7,17.0411]
[1723552824315,16.94382701,146.76,146.67,17.0448]
[1723552824316,20.0,146.75,146.67,17.0448]
[1723552824499,6.8162,146.71,146.67,23.8627]
[1723552824699,21.70424443,146.75,146.68,6.8174]
[1723552824700,6.8153,146.73,146.68,6.8174]
[1723552825130,20.0,146.75,146.7,17.0414]
[1723552825305,6.8149,146.74,146.7,17.0414]
[1723552825504,20.0,146.75,146.67,17.0444]
[1723552825700,6.8174,146.69,146.64,17.0478]
[1723552825905,63.8574,146.74,146.68,6.8174]
[1723552825906,46.82,146.74,146.68,6.8174]
[1723552826126,6.816,146.72,146.67,6.8176]
[1723552826405,6.8164,146.71,146.66,23.8636]
[1723552826603,1.70439696,146.7,146.66,23.8636]
[1723552826822,21.70452629,146.73,146.66,23.8636]
[1723552827224,6.8163,146.71,146.66,23.8636]
[1723552827830,21.70452629,146.73,146.66,23.8636]
[1723552827831,8.52132506,146.7,146.66,23.8636]
[1723552828013,8.52202786,146.69,146.64,6.8191]
[1723552828214,8.52202786,146.69,146.63,17.049]
[1723552828414,8.52202786,146.69,146.65,6.8188]
[1723552828633,37.0387,146.73,146.6,6.8209]
[1723552828634,15.678,146.66,146.6,6.8209]
[1723552828857,46.82,146.65,146.56,17.0573]
[1723552829143,6.8209,146.61,146.56,17.0573]
[1723552829509,6.8214,146.6,146.56,17.0573]
[1723552829709,20.0,146.59,146.53,17.061]
[1723552829947,6.8213,146.6,146.55,6.8235]
[1723552830146,20.0,146.65,146.55,34.1158]
[1723552830306,6.8205,146.62,146.55,34.1158]
[1723552830509,6.82,146.63,146.56,17.0574]
[1723552830711,20.0,146.62,146.56,17.0574]
[1723552830912,6.8209,146.61,146.56,23.8804]
[1723552831137,6.8213,146.6,146.56,23.8804]
[1723552831336,6.8218,146.59,146.54,6.8237]
[1723552831540,1.70595119,146.62,146.54,6.8237]
[1723552831742,21.70595119,146.62,146.54,6.8237]
[1723552832035,13.1101,146.58,146.54,6.8237]
[1723552832237,1.70595061,146.57,146.53,23.8854]
[1723552832414,1.70595061,146.57,146.53,17.061]
[1723552832617,15.9281,146.56,146.5,17.0642]
[1723552833020,15.9281,146.56,146.52,17.0618]
[1723552833336,8.52973262,146.55,146.51,6.8254]
[1723552833536,15.9281,146.56,146.52,6.8248]
[1723552833716,15.9281,146.56,146.51,17.0631]
[1723552833914,15.9281,146.56,146.55,6.8236]
[1723552834145,6.2878,146.58,146.56,6.823]
[1723552834649,6.2878,146.58,146.55,17.0585]
[1723552834949,6.2878,146.58,146.56,6.823]
[1723552835113,6.2878,146.58,146.57,6.8226]
[1723552835314,15.3232,146.62,146.57,6.8226]
[1723552835513,15.3232,146.62,146.58,6.822]
[1723552835707,15.3232,146.62,146.54,34.24579]
[1723552835708,15.3232,146.62,146.54,51.30519]
[1723552835931,17.02894078,146.62,146.53,0.12549]
[1723552836135,6.823,146.57,146.52,6.8248]
[1723552836340,6.8227,146.57,146.52,6.8246]
[1723552836509,15.3232,146.62,146.5,34.1296]
[1723552836715,22.1436,146.62,146.57,17.0559]
[1723552836937,22.1436,146.62,146.55,6.8232]
[1723552836938,6.8213,146.6,146.55,6.8232]
[1723552837139,6.8209,146.61,146.56,6.8227]
[1723552837310,68.9639,146.62,146.57,6.8224]
[1723552837516,68.9639,146.62,146.6,6.8209]
[1723552837517,15.3232,146.62,146.6,6.8209]
[1723552838014,15.3232,146.62,146.61,6.8208]
[1723552838312,6.8172,146.69,146.61,6.8208]
[1723552838313,16.1307,146.67,146.62,17.0503]
[1723552838518,16.1307,146.67,146.66,6.8184]
[1723552839039,6.3902,146.69,146.68,6.8175]
[1723552839238,16.3313,146.72,146.68,6.8175]
[1723552839624,16.3313,146.72,146.61,34.47857]
[1723552839625,63.1513,146.72,146.62,0.12549]
[1723552839833,1.70482416,146.71,146.62,45.37647]
[1723552840017,80.1913,146.72,146.63,6.8196]
[1723552840412,6.8179,146.68,146.62,0.25098]
[1723552840644,80.1913,146.72,146.64,6.8194]
[1723552840950,21.70485547,146.71,146.62,45.25098]
[1723552841114,6.818,146.67,146.62,7.07128]
[1723552841314,20.0,146.71,146.64,0.12549]
[1723552841520,26.8161,146.71,146.65,17.0466]
[1723552841739,26.8161,146.71,146.63,0.12549]
[1723552841740,20.0,146.71,146.63,0.12549]
[1723552841918,6.8184,146.66,146.62,17.17569]
[1723552842245,46.82,146.69,146.62,17.17569]
[1723552842449,20.0,146.68,146.65,0.12549]
[1723552842644,20.0,146.68,146.67,6.818]
[1723552842825,20.0,146.71,146.67,6.818]
[1723552843023,6.8166,146.7,146.66,17.0456]
[1723552843230,20.0,146.71,146.64,6.819]
[1723552843530,26.8162,146.71,146.65,17.0464]
[1723552843751,20.0,146.71,146.68,6.8173]
[1723552843931,20.0,146.71,146.69,6.817]
[1723552844135,20.0,146.71,146.67,17.0442]
[1723552844349,26.8162,146.71,146.67,17.0442]
[1723552844546,26.8162,146.71,146.67,23.862]
[1723552844725,20.0,146.71,146.67,23.862]
[1723552844930,20.0,146.71,146.67,17.0442]
[1723552845129,20.0,146.71,146.68,6.8174]
[1723552845547,16.3313,146.72,146.69,6.8169]
[1723552845732,16.3313,146.72,146.68,6.8174]
[1723552846049,16.3313,146.72,146.67,17.0442]
[1723552846050,6.8164,146.71,146.67,17.0442]
[1723552846231,6.8178,146.68,146.66,0.12549]
[1723552846435,1.70467062,146.67,146.6,17.0527]
[1723552846637,6.8195,146.64,146.6,23.8736]
[1723552846821,1.70515358,146.63,146.6,17.0527]
[1723552847028,6.8195,146.64,146.59,6.8216]
[1723552847334,53.6386,146.66,146.57,34.1111]
[1723552847655,20.0,146.68,146.6,34.1042]
[1723552847826,20.0,146.68,146.65,6.8189]
[1723552848238,20.0,146.69,146.65,6.8189]
[1723552848631,26.8171,146.69,146.65,6.8189]
[1723552849144,20.0,146.69,146.66,6.94379]
[1723552849351,63.1513,146.72,146.69,17.0417]
[1723552849546,63.1513,146.72,146.68,6.8174]
[1723552849854,63.1513,146.72,146.65,0.12549]
[1723552850071,63.1513,146.72,146.66,0.12549]
[1723552850260,63.1513,146.72,146.65,0.25098]
[1723552850436,6.8162,146.71,146.66,6.94359]
[1723552850635,69.9671,146.72,146.67,6.8177]
[1723552850947,20.0,146.71,146.68,6.8175]
[1723552851141,16.3313,146.72,146.7,17.0415]
[1723552851340,6.1673,146.74,146.7,17.0415]
[1723552851555,16.6573,146.78,146.72,17.0387]
[1723552851748,6.8137,146.77,146.72,23.8543]
[1723552851957,16.6573,146.78,146.75,23.8496]
[1723552852136,16.6573,146.78,146.75,17.0357]
[1723552852342,6.8137,146.77,146.73,0.12549]
[1723552852563,16.6573,146.78,146.75,0.12549]
[1723552852740,16.6573,146.78,146.75,52.31606]
[1723552852941,6.6296,146.79,146.77,6.8132]
[1723552853139,22.1478,146.83,146.79,6.8124]
[1723552853336,15.3371,146.83,146.78,17.40807]
[1723552853540,15.3371,146.83,146.81,6.8114]
[1723552853785,6.0771,146.84,146.81,6.8114]
[1723552853969,6.0771,146.84,146.82,0.25098]
[1723552854261,6.0771,146.84,146.8,0.25098]
[1723552854762,6.0771,146.84,146.81,0.25098]
[1723552855065,6.0771,146.84,146.78,0.12549]
[1723552855066,6.8111,146.82,146.78,0.12549]
[1723552855372,6.8111,146.82,146.77,23.8461]
[1723552855664,6.8111,146.82,146.78,7.06388]
[1723552856170,46.82,146.83,146.79,6.812]
[1723552856346,46.82,146.83,146.78,7.06378]
[1723552856347,8.51425827,146.82,146.78,7.06378]
[1723552856666,6.8116,146.81,146.77,0.12549]
[1723552856866,46.82,146.83,146.76,17.28498]
[1723552857164,26.8114,146.82,146.77,6.8133]
[1723552857370,6.8126,146.79,146.74,6.8144]
[1723552857668,53.632,146.8,146.75,6.8142]
[1723552857848,46.82,146.8,146.73,17.0376]
[1723552858052,46.82,146.8,146.68,34.0865]
[1723552858363,46.82,146.8,146.76,6.8134]
[1723552859040,6.8132,146.78,146.73,6.94039]
[1723552859240,30.6614,146.82,146.74,0.25098]
[1723552859464,46.82,146.79,146.73,51.8151]
[1723552859769,46.82,146.76,146.68,34.0865]
[1723552859970,46.82,146.7,146.64,17.0481]
[1723552860147,46.82,146.7,146.65,6.8188]
[1723552860462,6.8172,146.69,146.65,6.8188]
[1723552860665,46.82,146.7,146.64,17.0481]
[1723552860666,6.8177,146.68,146.64,17.0481]
[1723552860961,6.8177,146.68,146.63,6.8195]
[1723552860962,6.8176,146.68,146.63,6.8195]
[1723552861149,6.8171,146.69,146.64,6.8194]
[1723552861354,53.6366,146.7,146.66,6.8183]
[1723552861540,46.82,146.73,146.69,6.8167]
[1723552861739,20.0,146.72,146.69,6.8167]
[1723552861941,6.478,146.75,146.74,6.8147]
[1723552862245,26.478,146.75,146.71,17.0397]
[1723552862454,26.478,146.75,146.73,6.815]
[1723552862761,26.478,146.75,146.72,6.94099]
[1723552862956,16.4938,146.78,146.74,6.94009]
[1723552863352,6.8133,146.77,146.73,17.0373]
[1723552863660,23.3067,146.78,146.74,0.25098]
[1723552863867,23.3067,146.78,146.74,7.06568]
[1723552864373,26.8136,146.77,146.73,17.16279]
[1723552864539,20.0,146.77,146.63,34.0994]
[1723552864750,46.82,146.74,146.69,0.12549]
[1723552865079,46.82,146.74,146.71,6.816]
[1723552865284,6.8146,146.75,146.7,23.8577]
[1723552865449,20.0,146.74,146.71,0.12549]
[1723552865656,1.70403951,146.73,146.67,23.8621]
[1723552865860,66.82,146.74,146.63,34.0994]
[1723552866065,46.82,146.71,146.64,17.0477]
[1723552866270,27.99701118,146.7,146.63,6.8197]
[1723552866465,6.8188,146.66,146.61,17.0513]
[1723552866854,63.3072,146.68,146.63,6.8195]
[1723552867081,6.8188,146.66,146.61,17.0513]
[1723552867381,6.8188,146.66,146.51,56.83206445]
[1723552867382,46.82,146.65,146.58,17.055]
[1723552867574,46.82,146.62,146.56,6.823]
[1723552867753,26.8208,146.61,146.56,6.823]
[1723552867953,20.0,146.61,146.55,17.0583]
[1723552868167,6.822,146.59,146.54,6.824]
[1723552868369,6.8234,146.56,146.51,6.8252]
[1723552868570,16.88460986,146.58,146.56,6.8227]
[1723552868571,35.1786,146.58,146.56,6.8227]
[1723552868803,15.1786,146.58,146.57,6.8226]
[1723552869056,6.207,146.6,146.56,17.0572]
[1723552869256,20.0,146.59,146.53,17.0608]
[1723552869573,20.0,146.59,146.55,17.0584]
[1723552869780,6.207,146.6,146.57,17.0559]
[1723552869982,15.768,146.63,146.6,6.8209]
[1723552870148,20.0,146.62,146.59,17.0536]
[1723552870483,20.0,146.62,146.56,23.8807]
[1723552870484,6.8211,146.61,146.56,23.8807]
[1723552870785,6.8221,146.59,146.53,17.0608]
[1723552870953,20.0,146.62,146.54,0.25098]
[1723552871155,6.8208,146.61,146.55,17.0582]
[1723552871368,20.0,146.6,146.57,6.8226]
[1723552871682,20.0,146.62,146.58,6.8218]
[1723552871867,20.0,146.62,146.59,6.8217]
[1723552872257,20.0,146.62,146.58,0.12549]
[1723552872458,6.8213,146.6,146.58,0.12549]
[1723552872659,20.0,146.59,146.51,17.0632]
[1723552872882,46.82,146.6,146.51,17.0632]
[1723552873067,6.8226,146.57,146.52,6.8246]
[1723552873387,6.8221,146.59,146.53,6.8244]
[1723552873559,46.82,146.6,146.52,6.8249]
[1723552873560,20.0,146.58,146.52,6.8249]
[1723552873757,6.8232,146.56,146.52,6.8249]
[1723552874260,6.8232,146.56,146.51,23.8885]
[1723552874485,20.0,146.58,146.53,17.0608]
[1723552874684,20.0,146.59,146.54,6.8239]
[1723552875362,20.0,146.59,146.53,17.0608]
[1723552875563,6.8222,146.58,146.54,0.25098]
[1723552875773,20.0,146.57,146.54,0.25098]
[1723552876086,20.0,146.57,146.54,7.07468]
[1723552876267,62.588,146.63,146.56,0.12549]
[1723552876479,62.588,146.63,146.6,6.8211]
[1723552876480,15.768,146.63,146.6,6.8211]
[1723552876660,15.768,146.63,146.6,6.94659]
[1723552877062,15.768,146.63,146.62,0.12549]
[1723552877283,6.3165,146.65,146.62,0.37647]
[1723552877461,46.82,146.69,146.62,0.37647]
[1723552877462,6.8177,146.68,146.62,0.37647]
[1723552877664,6.8177,146.68,146.63,23.8685]
[1723552877984,15.4379,146.69,146.65,17.0466]
[1723552878284,15.4379,146.69,146.66,0.25098]
[1723552878467,15.4379,146.69,146.64,0.25098]
[1723552878666,15.4379,146.69,146.6,6.8209]
[1723552878867,15.4379,146.69,146.61,45.50196]
[1723552879073,6.4961,146.7,146.68,23.8611]